bitfinex-derivatives/quotes_ETHF0:USTF0_20210107
["timestamp","ask_amount","ask_price","bid_price","bid_amount"]
[1610050161609,3.1467,1227.1,1226.2,0.24136692]
[1610050162008,4.00959,1227.3,1226.2,0.24136692]
[1610050162409,4.00959,1227.3,1226.3,0.24122956]
[1610050162816,5.4749,1227.4,1226.3,0.24122956]
[1610050163017,3.475,1227.4,1226.3,0.24122956]
[1610050163215,3.475,1227.4,1226.2,0.48230602]
[1610050163216,3.475,1227.4,1226.5,0.24097154]
[1610050163616,3.475,1227.4,1227.3,4.00959]
[1610050164420,0.2123,1227.5,1227.3,4.00959]
[1610050164619,3.475,1227.4,1227.3,4.00959]
[1610050164819,6.25335261,1228.5,1227.3,4.00959]
[1610050165019,9.72835261,1228.5,1227.3,4.00959]
[1610050165220,3.475,1228.5,1227.4,0.23948861]
[1610050165623,3.475,1228.5,1228.4,4.00959]
[1610050165821,6.912,1228.8,1228.4,4.00959]
[1610050166020,6.24869093,1229.4,1228.4,4.00959]
[1610050166622,10.23,1229.5,1228.4,4.00959]
[1610050167622,10.23,1229.5,1228.7,4.00959]
[1610050168322,16.47755589,1229.5,1228.7,4.00959]
[1610050168522,6.24755589,1229.5,1228.7,4.00959]
[1610050168922,8.66415589,1229.5,1228.1,0.23902261]
[1610050169523,6.24871905,1229.3,1228.0,0.23917559]
[1610050169722,4.00959,1228.6,1228.0,4.24876559]
[1610050169922,2.2282,1229.1,1228.0,4.24876559]
[1610050170524,2.2282,1229.1,1228.2,0.23913094]
[1610050170926,2.2282,1229.1,1228.3,0.239026]
[1610050171125,2.4166,1229.5,1228.3,0.239026]
[1610050171426,2.4166,1229.5,1228.4,0.23884097]
[1610050171625,2.4166,1229.5,1229.2,4.00959]
[1610050172233,2.4166,1229.5,1228.4,0.23884097]
[1610050172426,9.72293392,1229.7,1228.4,0.23884097]
[1610050172629,6.24753678,1229.6,1228.3,0.2388561]
[1610050173229,6.24808402,1229.5,1228.2,0.2390214]
[1610050173426,8.33188402,1229.5,1228.2,0.2390214]
[1610050173636,8.33188402,1229.5,1228.1,0.23913954]
[1610050173637,6.24856538,1229.4,1228.1,0.23913954]
[1610050173833,6.24856538,1229.4,1229.0,4.00959]
[1610050174235,8.33216671,1229.5,1229.0,4.00959]
[1610050174632,2.0838,1229.5,1229.0,4.00959]
[1610050175631,9.72231583,1229.7,1229.0,4.00959]
[1610050175831,9.72231583,1229.7,1229.4,4.00959]
[1610050176432,3.475,1229.7,1229.4,4.00959]
[1610050177032,3.475,1229.7,1228.5,0.23833003]
[1610050177731,3.475,1229.7,1229.0,4.00959]
[1610050179734,3.475,1229.7,1229.6,4.00959]
[1610050181138,6.912,1230.2,1229.6,4.00959]
[1610050181339,6.24201375,1230.8,1229.6,4.00959]
[1610050181536,6.24201375,1230.8,1229.6,52.91649]
[1610050181738,6.24177499,1231.0,1230.7,4.00959]
[1610050182539,6.24163582,1231.1,1230.7,4.00959]
[1610050183743,6.24163582,1231.1,1231.0,4.00959]
[1610050183945,6.24069339,1231.2,1231.0,4.00959]
[1610050184343,6.24037143,1231.3,1231.0,4.00959]
[1610050185546,6.24042313,1231.4,1231.0,4.00959]
[1610050185745,6.24042313,1231.4,1230.5,55.2389]
[1610050185746,6.24042313,1231.4,1231.3,4.00959]
[1610050186346,6.23960203,1231.5,1231.3,4.00959]
[1610050187348,13.15089565,1231.6,1231.3,4.00959]
[1610050187853,13.15089565,1231.6,1231.5,4.00959]
[1610050188650,6.912,1231.6,1231.5,4.00959]
[1610050192556,6.2371779,1232.0,1231.5,4.00959]
[1610050192959,6.23678675,1232.2,1231.5,4.00959]
[1610050193857,6.23678675,1232.2,1231.0,49.4205]
[1610050194260,6.23670138,1232.1,1231.0,49.4205]
[1610050194459,6.23689708,1232.2,1231.0,49.4205]
[1610050195661,3.475,1232.4,1231.1,0.23691747]
[1610050195863,3.475,1232.4,1232.3,4.00959]
[1610050196461,6.23521005,1232.6,1232.3,4.00959]
[1610050196662,6.23392082,1232.7,1232.3,4.00959]
[1610050197064,6.2330955,1233.0,1232.3,4.00959]
[1610050197463,6.23299783,1233.1,1232.3,4.00959]
[1610050197863,6.23299783,1233.1,1233.0,4.00959]
[1610050198062,3.49540504,1233.3,1233.0,4.00959]
[1610050198063,6.23214606,1233.2,1233.0,4.00959]
[1610050198464,6.23191019,1233.3,1233.0,4.00959]
[1610050198865,13.14358907,1233.4,1233.0,4.00959]
[1610050199065,6.23158907,1233.4,1233.0,4.00959]
[1610050199867,6.23158907,1233.4,1233.3,4.00959]
[1610050200267,3.49411399,1233.6,1233.3,4.00959]
[1610050200268,6.23074535,1233.5,1233.3,4.00959]
[1610050200467,2.14341312,1233.4,1233.3,4.00959]
[1610050200668,6.23085209,1233.4,1233.3,4.00959]
[1610050201069,6.23062405,1233.5,1233.3,4.00959]
[1610050201670,6.2298586,1233.6,1233.3,4.00959]
[1610050201869,6.2298586,1233.6,1233.5,4.00959]
[1610050202072,6.2297035,1233.7,1233.5,4.00959]
[1610050204075,9.70417765,1233.9,1233.5,4.00959]
[1610050204475,6.22917765,1233.9,1233.5,4.00959]
[1610050204677,6.22917765,1233.9,1233.5,11.86849]
[1610050204881,6.22813,1234.0,1233.5,4.00959]
[1610050205081,6.22813,1234.0,1233.7,55.4664]
[1610050205278,6.22667701,1234.3,1233.7,55.4664]
[1610050205681,6.22579802,1234.6,1233.7,55.4664]
[1610050205881,0.49806384,1234.6,1234.5,4.00959]
[1610050206081,10.23,1234.7,1234.5,4.00959]
[1610050206479,10.23,1234.7,1234.5,65.07789]
[1610050206682,10.387,1235.0,1234.5,65.07789]
[1610050206880,3.475,1235.0,1234.5,65.07789]
[1610050207881,3.475,1235.0,1234.9,4.00959]
[1610050208280,7.70519177,1235.8,1234.9,4.00959]
[1610050208480,3.475,1235.8,1234.9,4.00959]
[1610050208880,7.70475411,1235.8,1234.9,4.00959]
[1610050209483,4.23017266,1235.6,1234.9,4.00959]
[1610050209883,4.00959,1235.4,1235.2,4.00959]
[1610050210581,4.22993675,1235.5,1235.2,4.00959]
[1610050211584,6.22081214,1235.6,1235.2,4.00959]
[1610050211984,6.22081214,1235.6,1234.5,61.0683]
[1610050211985,6.22077382,1235.7,1235.5,4.00959]
[1610050212683,6.22168738,1235.6,1235.5,4.00959]
[1610050212886,6.22162203,1235.7,1235.5,4.00959]
[1610050214185,6.22058428,1235.9,1235.5,4.00959]
[1610050214584,6.22004453,1236.0,1235.5,4.00959]
[1610050214986,17.142,1236.1,1235.5,4.00959]
[1610050215187,10.23,1236.1,1235.5,4.00959]
[1610050215986,10.23,1236.1,1236.0,4.00959]
[1610050216586,6.21850575,1236.3,1236.0,4.00959]
[1610050216990,6.21820875,1236.2,1236.0,4.00959]
[1610050217893,6.2181084,1236.3,1236.0,4.00959]
[1610050218692,6.21678753,1236.4,1236.0,4.00959]
[1610050219694,6.21713666,1236.3,1236.0,4.00959]
[1610050219894,6.21713666,1236.3,1236.2,4.00959]
[1610050220493,6.21690547,1236.4,1236.2,4.00959]
[1610050221295,6.21743896,1236.3,1236.2,4.00959]
[1610050221895,3.48673977,1236.4,1236.0,4.00959]
[1610050222100,2.85133624,1236.3,1236.0,4.00959]
[1610050222500,6.21834241,1236.2,1236.0,4.00959]
[1610050223096,3.63189458,1236.1,1236.0,4.00959]
[1610050223297,6.21899757,1236.1,1236.0,4.00959]
[1610050223496,6.21871415,1236.2,1236.0,4.00959]
[1610050223996,6.21871415,1236.2,1234.9,52.0671]
[1610050224997,6.2194736,1236.1,1234.9,52.0671]
[1610050225199,4.22924205,1236.1,1234.9,52.0671]
[1610050225599,6.21856209,1236.2,1234.9,52.0671]
[1610050225900,6.2184034,1236.1,1235.9,4.00959]
[1610050226501,9.38094593,1236.2,1235.9,4.00959]
[1610050227500,3.1627,1236.2,1235.9,4.00959]
[1610050227701,9.38155515,1236.2,1235.9,4.00959]
[1610050227900,9.38155515,1236.2,1236.1,4.00959]
[1610050229601,3.1627,1236.2,1236.1,4.00959]
[1610050229802,6.2177839,1236.3,1236.1,4.00959]
[1610050230703,6.21759678,1236.2,1236.1,4.00959]
[1610050230905,9.11869678,1236.2,1236.1,4.00959]
[1610050231104,9.11869678,1236.2,1234.8,53.1716]
[1610050231404,9.11869678,1236.2,1234.8,53.40596922]
[1610050231803,6.21842755,1236.1,1234.8,53.1716]
[1610050232004,6.21842755,1236.1,1235.6,4.00959]
[1610050232407,4.22853073,1236.1,1235.6,4.00959]
[1610050232810,6.2184751,1236.1,1235.6,4.00959]
[1610050233211,6.21869823,1236.0,1235.6,4.00959]
[1610050233510,6.21898218,1235.8,1235.6,4.00959]
[1610050233709,8.15508218,1235.8,1234.8,53.1716]
[1610050233910,12.16467218,1235.8,1235.0,4.00959]
[1610050234309,6.22027496,1235.6,1235.0,4.00959]
[1610050234711,6.22121649,1235.5,1235.0,4.00959]
[1610050235110,8.27660095,1235.3,1235.0,4.00959]
[1610050235312,6.28543265,1235.3,1235.0,4.00959]
[1610050235510,6.28543265,1235.3,1234.0,0.23593199]
[1610050235710,5.72383035,1235.2,1233.9,0.23633737]
[1610050235910,4.00959,1235.1,1234.8,4.00959]
[1610050236111,9.73376493,1235.1,1234.8,4.00959]
[1610050236512,3.73331394,1235.0,1234.8,4.00959]
[1610050236713,5.724424,1235.0,1234.8,4.00959]
[1610050236911,8.562824,1235.0,1233.7,0.23650794]
[1610050237113,8.562824,1235.0,1233.6,0.2365864]
[1610050237514,3.73415229,1234.9,1233.6,0.2365864]
[1610050237916,3.73415229,1234.9,1233.5,0.47317279]
[1610050237917,4.00959,1233.9,1233.5,4.2465892]
[1610050238114,4.00959,1233.9,1233.5,4.00959]
[1610050238514,2.3753,1234.0,1233.5,4.00959]
[1610050239918,2.3753,1234.0,1233.9,4.00959]
[1610050241219,3.73514232,1234.3,1233.9,4.00959]
[1610050241419,0.1494057,1234.3,1233.9,4.00959]
[1610050241621,5.72747318,1234.4,1233.9,4.00959]
[1610050241824,3.73491941,1234.5,1233.9,4.00959]
[1610050242021,3.73491941,1234.5,1234.4,4.00959]
[1610050242223,3.475,1234.6,1234.4,4.00959]
[1610050244125,1.99102515,1235.1,1234.4,4.00959]
[1610050244126,5.72419731,1235.1,1234.4,4.00959]
[1610050244325,5.72390431,1235.2,1234.4,4.00959]
[1610050245124,3.73232564,1235.1,1234.4,4.00959]
[1610050245526,9.19737832,1235.4,1234.4,4.00959]
[1610050245726,3.475,1235.4,1234.4,4.00959]
[1610050245926,3.475,1235.4,1235.3,4.00959]
[1610050246125,5.72207509,1235.5,1235.3,4.00959]
[1610050246928,5.72166906,1235.6,1235.3,4.00959]
[1610050247329,5.72133608,1235.7,1235.3,4.00959]
[1610050248030,3.73118691,1235.6,1235.5,4.00959]
[1610050248229,5.72112702,1235.6,1235.5,4.00959]
[1610050249930,5.72071929,1235.7,1235.5,4.00959]
[1610050250330,3.73090388,1235.7,1235.5,4.00959]
[1610050251032,12.63312516,1235.8,1235.5,4.00959]
[1610050251332,12.63312516,1235.8,1234.6,65.3898]
[1610050251532,3.73127646,1235.7,1234.4,0.23683112]
[1610050251735,3.73149171,1235.6,1234.3,0.23689129]
[1610050252133,4.00959,1235.1,1234.6,4.00959]
[1610050252332,5.72169744,1235.6,1234.6,4.00959]
[1610050252534,2.6523,1235.4,1234.6,4.00959]
[1610050252739,5.7229448,1235.3,1234.6,4.00959]
[1610050253141,5.72355336,1235.2,1233.9,0.23709431]
[1610050253541,5.72374999,1235.1,1233.8,0.23722483]
[1610050253741,7.93954999,1235.1,1233.8,0.23722483]
[1610050254141,7.93954999,1235.1,1234.3,4.00959]
[1610050254342,5.94868043,1235.1,1234.3,4.00959]
[1610050254742,3.48865551,1235.3,1234.3,4.00959]
[1610050254743,5.7224548,1235.3,1234.3,4.00959]
[1610050255142,6.3841038,1235.4,1234.3,4.00959]
[1610050255344,2.6523,1235.4,1234.3,4.00959]
[1610050255943,9.19710716,1235.5,1234.3,4.00959]
[1610050256142,9.19710716,1235.5,1235.3,4.00959]
[1610050256342,5.72167423,1235.6,1235.3,4.00959]
[1610050256744,6.912,1235.7,1235.3,4.00959]
[1610050257143,12.63345306,1235.7,1235.3,4.00959]
[1610050257845,10.64338243,1235.7,1235.3,4.00959]
[1610050258043,10.64338243,1235.7,1235.6,4.00959]
[1610050258246,5.7214514,1235.7,1235.6,4.00959]
[1610050258544,5.7214514,1235.7,1234.3,0.23596027]
[1610050258545,4.38887353,1235.7,1234.3,0.23596027]
[1610050258744,4.38887353,1235.7,1234.3,48.02316027]
[1610050258944,5.72189349,1235.6,1234.3,0.23596027]
[1610050259346,5.72189349,1235.6,1234.4,1.24376354]
[1610050259347,5.7228401,1235.5,1234.4,1.24376354]
[1610050259946,3.73240904,1235.4,1234.4,1.24376354]
[1610050260147,3.73240904,1235.4,1235.0,4.00959]
[1610050260347,5.72297746,1235.4,1235.0,4.00959]
[1610050260947,3.48844426,1235.6,1235.0,4.00959]
[1610050260948,5.72316867,1235.5,1235.0,4.00959]
[1610050262048,5.72316867,1235.5,1235.3,4.00959]
[1610050262448,5.72268641,1235.6,1235.3,4.00959]
[1610050263250,3.73218679,1235.6,1235.3,4.00959]
[1610050263449,5.72269231,1235.6,1235.3,4.00959]
[1610050264048,5.72269231,1235.6,1235.5,4.00959]
[1610050264249,5.72229192,1235.7,1235.5,4.00959]
[1610050264649,5.72184506,1235.8,1235.5,4.00959]
[1610050265049,3.73164534,1235.7,1235.5,4.00959]
[1610050265250,5.72187954,1235.8,1235.5,4.00959]
[1610050266050,5.72187954,1235.8,1235.7,4.00959]
[1610050266652,3.73056782,1236.0,1235.7,4.00959]
[1610050267053,5.72017237,1236.2,1235.7,4.00959]
[1610050267454,5.71868247,1236.3,1235.7,4.00959]
[1610050267853,6.96181811,1236.4,1235.7,4.00959]
[1610050267854,9.19343978,1236.4,1235.7,4.00959]
[1610050268054,9.19343978,1236.4,1236.3,4.00959]
[1610050268254,3.72924159,1236.5,1236.3,4.00959]
[1610050268455,5.71811382,1236.5,1236.3,4.00959]
[1610050268854,5.71815153,1236.6,1236.3,4.00959]
[1610050269456,3.72922926,1236.6,1236.3,4.00959]
[1610050269855,40.63340807,1236.7,1236.3,4.00959]
[1610050270056,40.63340807,1236.7,1236.6,4.00959]
[1610050270256,38.644702,1236.7,1236.6,4.00959]
[1610050270656,3.728702,1236.7,1236.6,4.00959]
[1610050270856,5.71713529,1236.8,1236.6,4.00959]
[1610050271159,12.62832402,1236.9,1236.6,4.00959]
[1610050271360,5.71632402,1236.9,1236.6,4.00959]
[1610050271561,3.72809995,1236.8,1236.6,4.00959]
[1610050271759,3.72833822,1236.9,1236.6,4.00959]
[1610050272158,3.7279579,1237.0,1236.8,4.00959]
[1610050272560,7.20268319,1237.1,1236.8,4.00959]
[1610050273565,3.475,1237.1,1236.8,4.00959]
[1610050274166,3.475,1237.1,1237.0,4.00959]
[1610050274564,13.95793625,1237.2,1237.0,4.00959]
[1610050274965,10.23,1237.2,1237.0,4.00959]
[1610050275570,33.72747053,1237.3,1235.9,0.2325548]
[1610050275767,3.39827866,1237.1,1235.7,0.23296095]
[1610050275972,6.8828318,1237.1,1235.5,0.69906638]
[1610050276167,3.72812391,1236.9,1235.5,0.23314448]
[1610050276372,3.72832392,1236.8,1235.5,0.23314448]
[1610050276767,3.72832392,1236.8,1235.4,0.23315006]
[1610050277367,3.72853397,1236.7,1235.4,0.23315006]
[1610050277571,33.72853397,1236.7,1235.4,0.23315006]
[1610050277772,33.72853397,1236.7,1235.3,0.23325193]
[1610050277970,3.62949841,1236.6,1235.3,0.23325193]
[1610050278167,4.00959,1235.8,1235.3,0.23325193]
[1610050278374,30.0,1235.7,1235.0,0.2336403]
[1610050278768,30.0,1235.7,1234.8,0.23365718]
[1610050278972,30.0,1235.7,1234.7,0.23375344]
[1610050279369,30.0,1235.7,1234.6,0.23397139]
[1610050279769,3.73153186,1235.6,1234.3,0.23425779]
[1610050279969,30.0,1235.5,1234.3,0.23425779]
[1610050280169,30.0,1235.5,1234.9,4.00959]
[1610050280170,4.00959,1235.2,1234.9,4.00959]
[1610050280369,4.00959,1235.2,1234.4,0.23426249]
[1610050280570,4.00959,1235.2,1234.3,0.23427386]
[1610050281271,4.00959,1235.2,1234.2,0.23440061]
[1610050281871,2.6968,1235.3,1234.2,0.23440061]
[1610050282071,2.6968,1235.3,1235.2,4.00959]
[1610050283271,3.1471,1235.6,1235.2,4.00959]
[1610050284175,2.0579,1235.9,1235.5,4.00959]
[1610050284572,5.4771,1236.2,1235.5,4.00959]
[1610050284773,3.475,1236.2,1235.5,4.00959]
[1610050285373,3.475,1236.2,1235.5,4.24238989]
[1610050285775,3.475,1236.2,1235.6,0.23266433]
[1610050286275,3.475,1236.2,1236.1,4.00959]
[1610050286477,6.912,1236.6,1236.1,4.00959]
[1610050286875,6.912,1236.6,1235.6,0.23266433]
[1610050287075,6.912,1236.6,1235.5,0.23331662]
[1610050287276,36.912,1236.6,1235.5,0.23331662]
[1610050287776,36.912,1236.6,1235.4,0.23338751]
[1610050288278,4.00959,1236.5,1235.4,0.23338751]
[1610050288879,34.00959,1236.5,1235.3,0.23382197]
[1610050289479,34.00959,1236.5,1235.2,0.46701757]
[1610050289480,37.73791633,1236.5,1235.2,0.23393503]
[1610050289780,3.72865418,1236.4,1235.1,0.23408358]
[1610050289979,30.0,1236.3,1235.1,0.23408358]
[1610050290179,30.0,1236.3,1235.8,4.00959]
[1610050290380,3.72887784,1236.3,1235.8,4.00959]
[1610050290681,3.72850622,1236.4,1235.8,4.00959]
[1610050291082,3.72842557,1236.5,1235.8,4.00959]
[1610050291681,10.64017019,1236.6,1235.8,4.00959]
[1610050291884,6.912,1236.6,1235.8,4.00959]
[1610050292283,6.912,1236.6,1236.5,4.00959]
[1610050292882,7.20259103,1236.9,1236.5,4.00959]
[1610050293082,3.475,1236.9,1236.5,4.00959]
[1610050294284,4.00959,1236.8,1236.0,54.4421]
[1610050294687,34.00959,1236.8,1236.0,54.4421]
[1610050294885,34.00959,1236.8,1235.8,0.23334131]
[1610050295086,34.00959,1236.8,1235.7,0.23357161]
[1610050296288,34.00959,1236.8,1236.7,4.00959]
[1610050296488,34.00959,1236.8,1235.7,0.23357161]
[1610050297091,4.00959,1236.8,1235.7,0.23357161]
[1610050297289,4.00959,1236.8,1235.8,0.23408184]
[1610050297689,3.475,1236.9,1235.8,0.23408184]
[1610050297889,3.475,1236.9,1235.8,1.4761047]
[1610050298090,3.475,1236.9,1235.9,0.23391904]
[1610050298290,3.475,1236.9,1236.8,4.00959]
[1610050298590,10.23,1237.2,1236.8,4.00959]
[1610050299390,40.23,1237.2,1236.1,63.2656]
[1610050299792,40.23,1237.2,1236.2,0.23373086]
[1610050300194,4.00959,1237.0,1236.2,0.23373086]
[1610050300395,34.00959,1237.0,1236.1,0.23389123]
[1610050300795,34.00959,1237.0,1236.0,0.23405095]
[1610050301393,4.00959,1237.0,1236.0,0.23405095]
[1610050302296,4.00959,1237.0,1236.1,1.24175696]
[1610050302494,4.00959,1237.0,1236.1,1.47552954]
[1610050303295,40.23,1237.2,1236.1,1.47552954]
[1610050303695,10.23,1237.2,1236.2,1.24170933]
[1610050304296,10.23,1237.2,1237.1,4.00959]
[1610050304496,30.0,1237.3,1237.1,4.00959]
[1610050304697,39.2232,1237.5,1237.1,4.00959]
[1610050305297,9.2232,1237.5,1237.1,4.00959]
[1610050305498,6.912,1237.5,1237.1,4.00959]
[1610050306699,6.912,1237.5,1236.6,47.42508487]
[1610050307902,6.912,1237.5,1236.7,1.24107825]
[1610050308401,4.00959,1237.2,1236.9,4.00959]
[1610050308804,6.912,1237.5,1236.9,4.00959]
[1610050309003,36.912,1237.5,1236.9,4.00959]
[1610050309604,6.912,1237.5,1236.9,4.00959]
[1610050310405,36.912,1237.5,1237.2,4.00959]
[1610050311007,36.912,1237.5,1236.6,0.23499388]
[1610050311405,6.912,1237.5,1236.6,0.23499388]
[1610050312505,6.912,1237.5,1237.2,4.00959]
[1610050312906,36.912,1237.5,1236.7,4.39369397]
[1610050313106,36.912,1237.5,1236.7,4.15832511]
[1610050313306,39.1486,1237.5,1236.7,4.15832511]
[1610050313706,39.1486,1237.5,1236.5,0.23569063]
[1610050314307,9.1486,1237.5,1236.5,0.23569063]
[1610050314507,9.1486,1237.5,1237.4,4.00959]
[1610050314707,6.912,1237.5,1236.6,0.23571777]
[1610050315108,6.912,1237.5,1236.6,1.47690827]
[1610050315811,6.912,1237.5,1236.7,0.23578563]
[1610050316410,6.912,1237.5,1237.4,4.00959]
[1610050318115,3.475,1237.6,1237.4,4.00959]
[1610050319416,3.67377634,1238.3,1237.4,4.00959]
[1610050319417,37.14877634,1238.3,1237.4,4.00959]
[1610050319620,33.475,1238.3,1237.4,4.00959]
[1610050319821,33.475,1238.3,1237.4,69.86599]
[1610050320521,33.475,1238.3,1237.4,65.8564]
[1610050321720,33.475,1238.3,1237.2,0.2349053]
[1610050322420,4.00959,1238.1,1237.6,4.00959]
[1610050322826,33.475,1238.3,1237.6,4.00959]
[1610050324521,33.475,1238.3,1237.9,4.00959]
[1610050324522,4.00959,1238.1,1237.9,4.00959]
[1610050325121,33.475,1238.3,1237.9,4.00959]
[1610050326623,4.00959,1238.2,1237.5,2.4888]
[1610050326922,30.0,1238.1,1237.5,2.4888]
[1610050328325,30.0,1238.1,1237.2,0.23338826]
[1610050328525,30.0,1238.1,1238.0,4.00959]
[1610050328725,30.0,1238.1,1237.2,0.23338826]
[1610050329629,30.0,1238.1,1237.3,1.24061764]
[1610050329830,30.0,1238.1,1237.3,1.47342393]
[1610050330031,30.0,1238.1,1237.5,64.4328]
[1610050330632,3.475,1238.3,1238.0,4.00959]
[1610050332233,33.475,1238.3,1238.0,4.00959]
[1610050332631,33.475,1238.3,1238.2,4.00959]
[1610050332833,30.0,1238.3,1238.2,4.00959]
[1610050333235,30.0,1238.3,1237.7,0.23307666]
[1610050333433,30.0,1238.3,1237.6,0.23312301]
[1610050333633,39.4792,1238.3,1237.6,0.23312301]
[1610050333834,39.4792,1238.3,1237.4,0.23335524]
[1610050334235,39.4792,1238.3,1237.2,0.2341122]
[1610050334533,4.00959,1237.8,1237.5,4.00959]
[1610050334733,30.0,1237.7,1237.2,0.2341122]
[1610050335336,30.0,1237.7,1237.1,0.23415426]
[1610050336537,4.00959,1237.5,1237.1,4.24374426]
[1610050336739,30.0,1237.4,1237.1,4.00959]
[1610050337136,30.0,1237.4,1237.0,0.23449615]
[1610050337337,30.0,1237.4,1236.9,54.69085314]
[1610050338237,30.0,1237.4,1236.9,54.4563]
[1610050338540,30.0,1237.4,1236.8,0.234154]
[1610050338738,4.00959,1237.0,1236.8,0.234154]
[1610050338938,30.0,1236.9,1236.8,0.234154]
[1610050339339,30.0,1236.9,1236.7,0.23426695]
[1610050339539,30.0,1236.9,1236.5,0.23448796]
[1610050339940,30.0,1236.9,1236.6,0.23392652]
[1610050340139,34.00959,1237.0,1236.6,0.23392652]
[1610050340540,30.0,1237.0,1236.6,0.23392652]
[1610050340740,30.0,1237.0,1236.8,4.00959]
[1610050341142,30.0,1237.3,1236.8,4.00959]
[1610050341845,30.0,1237.3,1236.7,0.23350655]
[1610050342041,30.0,1237.3,1236.6,0.23352919]
[1610050342643,4.00959,1237.1,1236.9,4.00959]
[1610050342844,34.00959,1237.1,1236.9,4.00959]
[1610050343246,30.0,1237.1,1236.9,4.00959]
[1610050343745,30.0,1237.6,1236.9,4.00959]
[1610050344643,4.00959,1237.3,1236.9,4.00959]
[1610050344844,30.0,1237.2,1236.9,4.00959]
[1610050345245,30.0,1237.2,1236.9,4.2427378]
[1610050345645,30.0,1237.2,1236.9,4.00959]
[1610050345845,30.0,1237.6,1236.9,4.00959]
[1610050346247,30.0,1237.6,1236.9,4.2426679]
[1610050346648,30.0,1237.6,1237.5,4.00959]
[1610050350856,30.0,1237.6,1237.5,5.250057]
[1610050351354,30.0,1237.9,1237.5,5.250057]
[1610050352356,3.475,1238.0,1237.5,5.250057]
[1610050352555,3.475,1238.0,1237.6,1.24038908]
[1610050352756,3.475,1238.0,1237.9,4.00959]
[1610050352955,30.0,1238.2,1237.9,4.00959]
[1610050353355,30.0,1238.3,1237.9,4.00959]
[1610050353555,30.0,1238.3,1237.6,1.47436515]
[1610050353957,30.0,1238.3,1238.0,1.24028441]
[1610050354755,34.00959,1238.3,1238.2,4.00959]
[1610050354955,34.00959,1238.3,1238.0,1.24028441]
[1610050355155,34.00959,1238.3,1237.7,1.24031347]
[1610050356755,4.00959,1237.8,1237.7,5.24990347]
[1610050356955,34.00959,1237.8,1237.7,1.24031347]
[1610050357856,34.00959,1237.8,1237.4,1.24053556]
[1610050358757,4.00959,1237.6,1237.5,4.00959]
[1610050358959,34.00959,1237.6,1237.4,1.24053556]
[1610050359364,34.00959,1237.6,1237.2,0.23593916]
[1610050359365,34.00959,1237.6,1237.3,1.47715559]
[1610050359761,34.00959,1237.6,1237.3,1.24043787]
[1610050360263,30.0,1237.6,1237.3,1.24043787]
[1610050360463,30.0,1237.5,1237.3,1.47732612]
[1610050360663,30.0,1237.5,1237.4,4.00959]
[1610050361364,30.0,1238.1,1237.4,4.24628717]
[1610050361665,30.0,1238.1,1237.5,0.2366536]
[1610050362064,30.0,1238.1,1237.5,1.24027321]
[1610050362664,30.0,1238.0,1237.5,1.24027321]
[1610050362864,30.0,1238.0,1237.9,4.00959]
[1610050364065,45.146,1238.4,1237.9,4.00959]
[1610050364266,75.146,1238.4,1237.9,4.00959]
[1610050364665,75.146,1238.4,1238.0,1.24007568]
[1610050364866,75.146,1238.4,1238.2,4.00959]
[1610050365266,75.146,1238.4,1238.0,1.24007568]
[1610050366071,75.146,1238.4,1237.7,1.2400727]
[1610050366269,75.146,1238.4,1237.7,1.47680445]
[1610050366871,75.146,1238.4,1238.3,4.00959]
[1610050367670,75.146,1238.4,1237.8,1.24006897]
[1610050370871,4.00959,1238.1,1237.8,1.24006897]
[1610050371072,30.0,1238.0,1237.8,1.24006897]
[1610050371672,30.0,1238.0,1237.7,1.24001883]
[1610050371874,30.0,1238.0,1237.7,1.47751781]
[1610050372072,30.0,1238.0,1237.8,0.23773568]
[1610050372772,30.0,1238.0,1237.7,1.47778737]
[1610050372971,45.146,1238.4,1237.7,1.47778737]
[1610050372972,25.99041,1237.9,1237.7,1.47778737]
[1610050373775,25.99041,1237.9,1237.7,0.23776854]
[1610050373972,25.99041,1238.3,1237.7,0.23776854]
[1610050374574,25.99041,1238.3,1237.8,0.23792099]
[1610050374974,30.0,1238.3,1238.2,4.00959]
[1610050376374,25.99041,1238.3,1238.2,4.00959]
[1610050376574,25.99041,1238.3,1238.2,5.24943018]
[1610050377677,60.90641,1238.4,1238.2,5.24943018]
[1610050378679,60.90641,1238.4,1238.2,4.00959]
[1610050379279,60.90641,1238.4,1238.3,1.23977859]
[1610050380880,64.916,1238.4,1238.3,1.23977859]
[1610050384785,75.9118,1238.4,1237.6,0.2420407]
[1610050384986,4.00959,1237.7,1237.6,0.2420407]
[1610050385187,30.0,1237.7,1237.6,0.2420407]
[1610050385385,30.0,1237.7,1237.5,0.48408139]
[1610050385386,30.0,1237.7,1237.5,0.24215954]
[1610050386387,30.0,1237.7,1237.3,0.48253235]
[1610050386388,94.6333,1237.7,1237.6,1.23649483]
[1610050387687,94.6333,1237.7,1237.3,1.23705436]
[1610050388087,97.6671,1237.7,1237.3,1.23705436]
[1610050388887,4.00959,1237.4,1237.3,1.23705436]
[1610050389087,30.0,1237.4,1237.1,1.23718793]
[1610050389288,32.7973,1237.4,1237.1,1.23718793]
[1610050390491,32.7973,1237.4,1237.0,1.23724016]
[1610050390891,4.00959,1237.1,1237.0,1.23724016]
[1610050391092,30.0,1237.1,1237.0,1.23724016]
[1610050392095,30.0,1237.1,1236.9,0.24105718]
[1610050392295,53.4773,1237.0,1236.9,0.24105718]
[1610050392494,53.4773,1237.0,1236.7,0.24247021]
[1610050392495,79.46771,1237.0,1236.7,0.24247021]
[1610050392895,4.00959,1236.8,1236.5,2.38119994]
[1610050393095,4.00959,1236.8,1236.4,0.24328576]
[1610050393096,25.99041,1236.7,1236.4,0.24328576]
[1610050393295,33.08241,1236.7,1236.4,0.24328576]
[1610050393496,35.44361,1236.7,1236.4,0.24328576]
[1610050394097,35.44361,1236.7,1236.3,0.24348517]